bitfinex/quotes_SOLUSD_20251214
["timestamp","ask_amount","ask_price","bid_price","bid_amount"]
[1765754512693,7.7183251,129.57,129.53,8.38002304]
[1765754513003,14.88574213,129.57,129.54,0.66]
[1765754513303,15.54574213,129.57,129.54,0.66]
[1765754514994,8.3783251,129.57,129.54,0.66]
[1765754516613,104.7,129.6,129.55,7.16741703]
[1765754516817,8.46,129.59,129.55,7.16741703]
[1765754517110,16.17683808,129.59,129.56,0.71]
[1765754517614,16.89683808,129.59,129.56,0.71]
[1765754518111,0.72,129.58,129.54,0.71]
[1765754518299,24.06425511,129.59,129.55,0.71]
[1765754518491,16.89683808,129.59,129.55,0.71]
[1765754519410,16.17683808,129.59,129.55,8.4289875]
[1765754519796,16.17683808,129.59,129.56,0.71]
[1765754521310,24.06425511,129.59,129.56,0.71]
[1765754521511,8.46,129.59,129.56,0.71]
[1765754521716,8.46,129.59,129.56,8.42839913]
[1765754522084,8.46,129.59,129.57,0.71]
[1765754522494,8.46,129.59,129.57,8.42755387]
[1765754522791,7.71375193,129.64,129.58,7.16741703]
[1765754523018,16.17375193,129.64,129.58,0.71]
[1765754523194,16.17375193,129.64,129.59,7.87741703]
[1765754523628,16.17375193,129.64,129.6,0.71]
[1765754523990,16.89375193,129.64,129.6,0.71]
[1765754524197,8.46,129.64,129.6,15.59341023]
[1765754524705,8.46,129.64,129.61,0.71]
[1765754526090,8.46,129.64,129.61,8.42520702]
[1765754526336,8.46,129.64,129.62,0.71]
[1765754526702,104.8,129.65,129.62,5.11776493]
[1765754526911,0.1,129.65,129.63,4.40776493]
[1765754527107,0.1,129.65,129.63,5.11776493]
[1765754527325,0.1,129.65,129.64,0.71]
[1765754532910,0.1,129.65,129.63,7.71397553]
[1765754533104,0.1,129.65,129.64,0.71]
[1765754533723,0.1,129.65,129.64,8.42366862]
[1765754536150,0.1,129.65,129.64,21.64137847]
[1765754539531,0.1,129.65,129.64,34.68846967]
[1765754540653,12.21681386,129.72,129.67,13.0470912]
[1765754540654,0.1,129.72,129.67,13.0470912]
[1765754540846,0.1,129.72,129.68,13.21770985]
[1765754541033,0.1,129.72,129.68,13.92770985]
[1765754541239,0.1,129.72,129.69,0.71]
[1765754541740,0.1,129.72,129.69,21.63840458]
[1765754543054,0.1,129.72,129.69,12.82845966]
[1765754543253,0.1,129.72,129.69,21.63840458]
[1765754543450,0.1,129.72,129.69,34.68549578]
[1765754543451,1e-08,129.7,129.69,34.68549578]
[1765754546760,1e-08,129.7,129.69,21.63840458]
[1765754547050,1e-08,129.72,129.7,10.51994491]
[1765754547359,1e-08,129.72,129.71,10.08211273]
[1765754547528,1e-08,129.72,129.71,10.79211273]
[1765754547850,1e-08,129.72,129.71,19.60205765]
[1765754548033,1e-08,129.72,129.71,27.31156347]
[1765754549051,1e-08,129.72,129.71,40.35865467]
[1765754550255,1e-08,129.72,129.7,7.71002376]
[1765754550559,0.66000001,129.72,129.7,7.71002376]
[1765754551053,0.66000001,129.72,129.69,7.71058645]
[1765754551252,0.66000001,129.72,129.7,7.71005731]
[1765754551465,1e-08,129.72,129.71,7.70950582]
[1765754551644,1e-08,129.72,129.71,23.10982422]
[1765754551961,1e-08,129.72,129.71,20.75659702]
[1765754552259,1e-08,129.72,129.71,21.46659702]
[1765754556968,1e-08,129.72,129.71,20.75659702]
[1765754557938,1e-08,129.72,129.71,21.46659702]
[1765754561763,0.66000001,129.72,129.7,7.70998288]
[1765754562772,0.66000001,129.72,129.69,7.71051762]
[1765754565687,0.66000001,129.72,129.69,8.42051762]
[1765754565856,0.66000001,129.72,129.69,7.71051762]
[1765754566552,0.66000001,129.72,129.69,8.42051762]
[1765754566759,0.66000001,129.72,129.69,7.71051762]
[1765754567871,2.30322721,129.72,129.69,7.71051762]
[1765754568076,1.6432272,129.71,129.69,7.71051762]
[1765754568386,2.3032272,129.71,129.69,7.71051762]
[1765754568698,0.66,129.7,129.69,7.71051762]
[1765754570380,2.3032272,129.7,129.66,32.32755922]
[1765754570682,1.6432272,129.69,129.66,32.32755922]
[1765754570871,2.3032272,129.69,129.67,7.71147573]
[1765754571067,0.66,129.68,129.67,7.71147573]
[1765754571889,0.66,129.68,129.66,7.71247879]
[1765754577894,0.66,129.68,129.65,7.71307365]
[1765754578189,0.66,129.68,129.65,8.40307365]
[1765754578390,0.66,129.68,129.65,27.68575779]
[1765754580378,0.67,129.68,129.65,27.68575779]
[1765754581194,0.67,129.7,129.66,0.69]
[1765754581390,0.67,129.71,129.66,2.3332272]
[1765754581779,1e-08,129.72,129.68,7.71128932]
[1765754581977,1e-08,129.72,129.69,1.6432272]
[1765754582171,1e-08,129.72,129.71,1.6432272]
[1765754582578,1e-08,129.72,129.71,2.3332272]
[1765754583089,1e-08,129.72,129.71,24.19026332]
[1765754583297,1e-08,129.72,129.71,32.63026332]
[1765754583874,1e-08,129.72,129.71,40.33976914]
[1765754584898,1e-08,129.72,129.71,29.88659702]
[1765754585312,1e-08,129.72,129.71,31.52982422]
[1765754585502,1e-08,129.72,129.71,20.75659702]
[1765754585710,1e-08,129.72,129.67,0.99999999]
[1765754585711,3.23686283,129.72,129.67,19.96902336]
[1765754586001,0.67000001,129.72,129.68,30.24637545]
[1765754586391,0.67000001,129.72,129.69,0.69]
[1765754587397,0.67000001,129.72,129.7,7.71010023]
[1765754589397,0.67000001,129.72,129.69,7.71069473]
[1765754589588,0.67000001,129.72,129.69,8.40069473]
[1765754589992,1e-08,129.72,129.69,43.29138558]
[1765754590617,0.67000001,129.72,129.69,40.72452276]
[1765754592013,0.67000001,129.72,129.69,8.40069473]
[1765754593013,0.67000001,129.72,129.69,7.71069473]
[1765754593310,8.37894771,129.72,129.68,7.71124792]
[1765754593514,0.67000001,129.72,129.68,7.71124792]
[1765754593807,0.67,129.71,129.68,8.40124792]
[1765754594631,1e-08,129.72,129.69,0.69]
[1765754594812,0.67000001,129.72,129.69,0.69]
[1765754595323,0.67000001,129.72,129.7,7.71010023]
[1765754598140,0.67000001,129.72,129.69,7.71069473]
[1765754598824,3.23813225,129.72,129.68,7.71112005]
[1765754599032,2.56813224,129.71,129.68,7.71112005]
[1765754599214,3.23813224,129.71,129.68,7.71112005]
[1765754599416,0.67,129.71,129.68,8.40112005]
[1765754600934,3.23813224,129.71,129.68,7.71112005]
[1765754601429,0.67,129.7,129.68,7.71112005]
[1765754607243,3.28813224,129.69,129.67,20.75892424]
[1765754607445,0.72,129.69,129.67,7.71183304]
[1765754607827,0.72,129.69,129.66,8.41231515]
[1765754608053,3.28813224,129.69,129.66,7.71231515]
[1765754608427,0.72,129.68,129.66,7.71231515]
[1765754608646,2.56813224,129.67,129.63,7.714141]
[1765754608948,0.72,129.68,129.6,0.8]
[1765754608949,2.56813224,129.65,129.6,0.8]
[1765754609249,0.72,129.64,129.61,27.00341668]
[1765754609751,0.72,129.64,129.61,27.70341668]
[1765754610248,2.56813224,129.65,129.61,27.70341668]
[1765754610547,3.28813224,129.65,129.61,27.70341668]
[1765754610748,3.28813224,129.64,129.61,7.71545405]
[1765754611545,2.56813224,129.64,129.61,7.71545405]
[1765754612047,2.56813224,129.65,129.61,8.41545405]
[1765754612239,0.72,129.65,129.62,0.7]
[1765754612440,11.72813224,129.66,129.62,0.7]
[1765754612755,0.72,129.67,129.63,7.71426367]
[1765754613251,0.72,129.67,129.63,8.41426367]
[1765754613451,2.56813224,129.66,129.62,7.71467285]
[1765754613636,2.56813224,129.64,129.61,7.71533031]
[1765754614040,3.28813224,129.64,129.62,7.71476119]
[1765754616856,3.28813224,129.64,129.61,8.41545405]
[1765754617552,3.28813224,129.63,129.61,7.71545405]
[1765754621848,16.15315776,129.65,129.61,7.71545405]
[1765754622062,8.44,129.65,129.62,0.7]
[1765754622368,2.56813224,129.64,129.61,27.70408918]
[1765754622941,3.28813224,129.64,129.61,27.70408918]
[1765754624357,0.72,129.64,129.61,27.70408918]
[1765754628568,3.28813224,129.64,129.61,27.70408918]
[1765754630080,0.72,129.64,129.61,27.70408918]
[1765754632878,0.72,129.64,129.61,8.41545405]
[1765754633181,3.28813224,129.64,129.61,8.41545405]
[1765754633480,3.29156802,129.64,129.61,8.41545405]
[1765754634685,0.72,129.64,129.61,8.41545405]
[1765754634882,8.44,129.65,129.61,7.71545405]
[1765754635182,8.44,129.65,129.62,0.7]
[1765754636056,8.44,129.65,129.63,7.71426367]
[1765754636257,3.29156802,129.66,129.63,7.71426367]
[1765754636458,2.57156802,129.64,129.6,22.1770912]
[1765754636674,2.57156802,129.63,129.6,13.7370912]
[1765754637081,3.29156802,129.63,129.6,13.7370912]
[1765754637466,0.72,129.63,129.61,7.71521283]
[1765754638461,3.29156802,129.63,129.61,7.71521283]
[1765754638991,0.72,129.63,129.61,7.71521283]
[1765754640203,11.73156802,129.64,129.61,8.40521283]
[1765754640501,19.45156802,129.67,129.62,0.69]
[1765754640699,19.45156802,129.67,129.62,3.26156802]
[1765754640700,8.44,129.67,129.62,3.26156802]
[1765754641002,8.44,129.67,129.63,2.57156802]
[1765754641202,8.44,129.67,129.63,3.26156802]
[1765754641389,8.44,129.67,129.64,0.69]
[1765754641906,3.29156802,129.66,129.61,27.00384796]
[1765754642087,2.57156802,129.64,129.61,7.71521283]
[1765754642478,0.72,129.63,129.61,7.71521283]
[1765754643707,3.29156802,129.65,129.61,8.40521283]
[1765754643874,0.72,129.64,129.61,8.40521283]
[1765754644202,3.29156802,129.64,129.61,8.40521283]
[1765754644698,0.72,129.65,129.62,0.69]
[1765754644886,3.29156802,129.65,129.61,8.40521283]
[1765754645390,0.72,129.64,129.61,8.40521283]
[1765754646587,3.29156802,129.64,129.61,8.40521283]
[1765754647388,2.36583416,129.64,129.61,8.40521283]
[1765754647782,0.72,129.63,129.61,7.71521283]
[1765754648175,2.36583416,129.64,129.61,8.40521283]
[1765754649101,0.72,129.64,129.61,8.40521283]
[1765754649475,1.64583416,129.66,129.62,0.69]
[1765754649674,2.36583416,129.66,129.62,0.69]
[1765754649905,2.36583416,129.65,129.61,7.71521283]
[1765754650273,35.43177383,129.67,129.61,7.71521283]
[1765754650274,2.36583416,129.64,129.61,8.40521283]
[1765754650473,1.64583416,129.63,129.6,20.76307364]
[1765754650693,0.72,129.62,129.6,20.76307364]
[1765754653296,0.72,129.62,129.6,7.71598244]
[1765754654724,0.72,129.63,129.6,0.69]
[1765754654896,2.36583416,129.63,129.6,0.69]
[1765754655293,1.64583416,129.63,129.59,7.7166448]
[1765754655528,0.72,129.62,129.59,8.4066448]
[1765754656207,0.72,129.62,129.59,7.7166448]
[1765754656717,8.43501635,129.62,129.58,21.45411322]
[1765754656915,0.72,129.62,129.59,0.69]
[1765754657225,0.72,129.61,129.58,21.45411322]
[1765754657605,0.72,129.62,129.59,0.69]
[1765754657815,2.36583416,129.62,129.59,0.69]
[1765754658827,2.36583416,129.62,129.59,8.40658904]
[1765754659212,0.72,129.61,129.59,7.71658904]
[1765754659928,0.72,129.61,129.58,21.45426328]
[1765754660329,9.36072063,129.62,129.58,20.76426328]
[1765754660514,10.08072063,129.62,129.59,0.69]
[1765754661115,0.72,129.61,129.58,21.45426328]
[1765754661317,1.64583416,129.6,129.57,7.71761053]
[1765754661519,2.36583416,129.6,129.57,8.40761053]
[1765754663532,2.36583416,129.59,129.57,7.71761053]
[1765754663827,10.80583416,129.61,129.58,0.69]
[1765754664002,8.44,129.61,129.58,0.69]
[1765754664427,8.44,129.61,129.59,7.7166448]
[1765754664624,10.80583416,129.61,129.58,8.40709174]
[1765754664834,2.36583416,129.6,129.58,7.71709174]
[1765754665027,1.64583416,129.6,129.58,8.40709174]
[1765754665527,10.80583416,129.61,129.58,8.40709174]
[1765754665909,10.08583416,129.61,129.58,7.71709174]
[1765754666109,9.16,129.61,129.58,8.40709174]
[1765754666309,10.80583416,129.61,129.58,8.40709174]
[1765754667428,1.64583416,129.6,129.58,8.40709174]
[1765754667821,2.36583416,129.6,129.58,7.71709174]
[1765754668534,1.64583416,129.6,129.58,0.65]
[1765754669241,1.64583416,129.6,129.57,7.71783591]
[1765754669440,0.72,129.59,129.57,8.36783591]
[1765754669650,1.64583416,129.6,129.57,8.36783591]
[1765754669821,2.36583416,129.6,129.57,8.36783591]
[1765754671249,9.36196173,129.6,129.56,20.96529599]
[1765754671544,2.36583416,129.59,129.56,13.8970912]
[1765754672240,0.72,129.59,129.56,21.61549652]
[1765754672441,2.36583416,129.59,129.56,21.61549652]
[1765754672623,1.64583416,129.59,129.56,21.61549652]
[1765754672823,2.36583416,129.59,129.56,21.61549652]
[1765754674044,2.36583416,129.58,129.56,7.91840532]
[1765754674437,0.72,129.58,129.56,7.91840532]
[1765754674838,0.72,129.58,129.56,8.56840532]
[1765754675232,1.6473513,129.59,129.56,8.56840532]
[1765754675434,2.3673513,129.59,129.56,8.56840532]
[1765754678248,10.0840738,129.59,129.56,0.85]
[1765754678845,2.3673513,129.58,129.56,0.2]
[1765754679052,1.6473513,129.57,129.56,0.2]
[1765754679253,2.3673513,129.57,129.56,0.2]
[1765754680136,8.46,129.58,129.56,0.85]
[1765754680333,8.46,129.58,129.56,8.56816761]
[1765754680556,8.46,129.58,129.57,0.65]
[1765754681370,8.46,129.58,129.56,8.56816761]
[1765754681539,0.72,129.57,129.56,7.91816761]
[1765754681742,0.72,129.57,129.56,0.2]
[1765754682043,1.6473513,129.58,129.56,0.85]
[1765754682246,2.3673513,129.59,129.56,0.85]
[1765754682948,2.3673513,129.58,129.56,0.2]
[1765754684538,2.3673513,129.58,129.56,0.85]
[1765754684739,2.3673513,129.58,129.56,0.2]
[1765754687674,0.72,129.57,129.56,0.2]
[1765754689777,10.08460725,129.58,129.56,0.2]
[1765754690073,2.3673513,129.58,129.56,0.2]
[1765754691258,0.72,129.58,129.56,0.2]
[1765754691467,2.3673513,129.58,129.56,0.2]
[1765754693152,0.72,129.59,129.56,8.56822701]
[1765754693375,17.82350625,129.6,129.56,8.56822701]
[1765754693569,2.3673513,129.59,129.56,8.56822701]
[1765754694162,0.72,129.58,129.56,8.56822701]
[1765754694572,1.6473513,129.57,129.56,0.2]
[1765754695174,2.3673513,129.57,129.56,0.2]
[1765754697173,18.54518721,129.57,129.56,0.2]
[1765754700180,10.8273513,129.57,129.56,0.2]
[1765754700356,8.46,129.57,129.56,0.2]
[1765754700561,18.51518721,129.57,129.56,0.2]
[1765754703781,18.5171604,129.57,129.56,0.2]
[1765754704174,26.23499631,129.57,129.56,0.2]
[1765754704872,16.1798091,129.57,129.56,0.2]
[1765754705489,8.46,129.57,129.56,0.2]
[1765754706373,10.7973513,129.57,129.56,0.2]
[1765754707367,11.03453298,129.57,129.56,0.2]
[1765754708485,8.46,129.57,129.56,0.91]
[1765754709791,8.46,129.57,129.56,0.2]
[1765754710900,8.46,129.57,129.56,0.91]
[1765754712900,8.46,129.57,129.56,0.2]
[1765754713076,11.0343853,129.57,129.56,0.2]
[1765754713478,11.0343853,129.57,129.56,0.91]
[1765754713987,8.46,129.57,129.56,0.91]
[1765754714313,8.46,129.57,129.56,0.2]
[1765754714480,8.46,129.57,129.56,0.91]
[1765754718608,8.46,129.57,129.56,8.62843161]
[1765754719610,11.7243853,129.57,129.56,0.2]
[1765754720001,11.0343853,129.57,129.56,0.2]
[1765754720412,11.0343853,129.57,129.56,0.91]
[1765754720916,11.7243853,129.57,129.56,0.2]
[1765754721100,19.44222121,129.57,129.56,0.2]
[1765754722499,11.0343853,129.57,129.56,0.2]
[1765754722706,11.7243853,129.57,129.56,0.2]
[1765754728413,19.44222121,129.57,129.56,0.2]
[1765754730907,11.7243853,129.57,129.56,0.2]
[1765754733419,8.46,129.57,129.56,0.86]
[1765754733595,11.0343853,129.57,129.56,0.86]
[1765754734719,11.0343853,129.57,129.56,0.2]
[1765754736122,11.7243853,129.57,129.56,0.2]
[1765754737621,11.0343853,129.57,129.56,0.2]
[1765754738396,11.7243853,129.57,129.56,0.2]
[1765754739025,11.0343853,129.57,129.56,0.2]
[1765754740925,11.0343853,129.57,129.56,0.86]
[1765754741110,11.0343853,129.57,129.56,0.2]
[1765754741821,11.0343853,129.57,129.56,0.86]
[1765754742042,11.0343853,129.57,129.56,0.2]
[1765754742203,11.0343853,129.57,129.56,0.86]
[1765754742816,11.0343853,129.57,129.56,0.2]
[1765754743923,11.0343853,129.57,129.56,0.86]
[1765754744425,8.46,129.57,129.56,0.86]
[1765754748106,8.46,129.57,129.56,8.57843161]
[1765754748306,16.86688814,129.6,129.56,8.57843161]
[1765754748631,8.46,129.6,129.57,8.3774468]
[1765754749118,11.0343853,129.62,129.58,0.66]
[1765754749321,11.7243853,129.62,129.58,0.66]
[1765754749526,2.5743853,129.61,129.58,0.66]
[1765754750004,9.15,129.62,129.58,8.3767465]
[1765754750203,2.5743853,129.61,129.58,8.3767465]
[1765754750404,2.5743853,129.61,129.59,0.66]
[1765754750633,9.15,129.62,129.59,0.66]
[1765754750929,11.7243853,129.62,129.59,0.66]
[1765754751129,11.72272086,129.62,129.59,0.66]
[1765754751532,2.57272086,129.61,129.59,8.37662666]
[1765754751932,11.72272086,129.62,129.59,8.37662666]
[1765754752307,11.72272086,129.62,129.6,0.66]
[1765754752707,2.57272086,129.61,129.59,0.66]
[1765754752920,2.57272086,129.6,129.57,0.66]
[1765754753135,2.57272086,129.59,129.57,0.66]
[1765754753341,2.57272086,129.58,129.56,0.2]
[1765754753516,2.57272086,129.58,129.56,0.86]
[1765754754038,2.57272086,129.58,129.57,0.66]
[1765754755642,2.57272086,129.58,129.56,0.86]
[1765754755821,3.26272086,129.57,129.56,0.2]
[1765754756024,11.72272086,129.57,129.56,0.2]
[1765754756937,19.44055677,129.57,129.56,0.2]
[1765754757441,28.25050169,129.57,129.56,0.2]
[1765754757741,2.57272086,129.53,129.52,0.2]
[1765754757925,11.03272086,129.53,129.52,0.2]
[1765754758119,11.72272086,129.53,129.52,0.2]
[1765754758914,19.44294011,129.53,129.52,0.2]
[1765754762233,28.25288503,129.53,129.52,0.2]
[1765754765043,41.29997623,129.53,129.52,0.2]
[1765754765236,60.60052436,129.53,129.48,0.2]
[1765754765546,2.57272086,129.49,129.48,0.2]
[1765754765747,11.03272086,129.49,129.48,0.2]
[1765754766250,11.72272086,129.49,129.48,0.2]
[1765754766457,19.44532492,129.49,129.48,0.2]
[1765754766947,18.75532492,129.49,129.48,0.2]
[1765754768954,19.44532492,129.49,129.48,0.2]
[1765754769334,18.52266533,129.49,129.48,0.2]
[1765754769827,17.83266533,129.49,129.48,0.2]
[1765754772460,10.11006127,129.49,129.48,0.88]
[1765754773160,17.83266533,129.49,129.48,0.2]
[1765754774865,31.56975653,129.49,129.48,0.2]
[1765754776570,30.87975653,129.49,129.48,0.2]
[1765754776739,31.56975653,129.49,129.48,0.2]
[1765754783656,30.87975653,129.49,129.48,0.2]
[1765754783849,31.56975653,129.49,129.48,0.2]
[1765754788766,31.5700625,129.49,129.48,0.2]
[1765754793355,83.80994492,129.48,129.47,0.2]
[1765754793577,9.51994492,129.48,129.47,0.2]
[1765754793884,11.17031216,129.48,129.47,0.2]
[1765754794563,18.89351265,129.48,129.47,0.2]
[1765754797174,10.08356773,129.48,129.47,0.2]
[1765754801359,11.73393497,129.48,129.47,0.2]
[1765754803859,20.54387989,129.48,129.47,0.2]
[1765754804501,28.27163667,129.48,129.47,0.2]
[1765754805299,8.80994492,129.47,129.43,0.3]
[1765754805499,8.80994492,129.47,129.43,0.2]
[1765754805500,14.69745844,129.44,129.43,0.2]
[1765754805801,23.15745844,129.44,129.43,0.87]
[1765754805982,23.15745844,129.44,129.43,0.2]
[1765754806389,23.86745844,129.44,129.43,0.2]
[1765754807188,55.86740336,129.44,129.43,1e-08]
[1765754807396,13.0470912,129.4,129.39,0.2]
[1765754807585,23.15745844,129.4,129.39,0.2]
[1765754808212,23.86745844,129.4,129.39,0.2]
[1765754808385,23.15745844,129.4,129.39,0.2]
[1765754809384,31.59543371,129.4,129.39,0.2]
[1765754809883,30.88543371,129.4,129.39,0.2]
[1765754810793,31.59543371,129.4,129.39,0.2]
[1765754812126,30.88543371,129.4,129.39,0.2]
[1765754812432,30.88543371,129.4,129.39,0.87]
[1765754813496,30.88543371,129.4,129.39,0.2]
[1765754815093,30.88543371,129.4,129.39,0.87]
[1765754815513,30.88543371,129.4,129.39,0.2]
[1765754816403,31.55543371,129.4,129.39,0.2]
[1765754817500,40.36537863,129.4,129.39,0.2]
[1765754818109,44.91477863,129.4,129.39,0.2]
[1765754818303,172.80477863,129.4,129.38,4.5494]
[1765754818512,2.32036724,129.39,129.38,4.5494]
[1765754819200,1.65036724,129.39,129.38,5.2694]
[1765754819417,2.32036724,129.39,129.38,4.5494]
[1765754819815,1.65036724,129.39,129.38,4.5494]
[1765754820022,1.65036724,129.39,129.38,5.2694]
[1765754820219,10.46031216,129.39,129.38,4.5494]
[1765754820397,18.18888469,129.39,129.38,4.5494]
[1765754820728,18.18888469,129.39,129.34,2334.07313309]
[1765754820729,182.99994491,129.35,129.34,1942.84282233]
[1765754820928,118.7606794,129.35,129.34,1405.34962901]
[1765754821226,119.76067939,129.35,129.34,1173.17080989]
[1765754821416,140.34181407,129.35,129.34,1173.17080989]
[1765754821622,130.19890527,129.35,129.34,1173.17080989]
[1765754822002,130.19890527,129.35,129.34,935.37333097]
[1765754822202,130.19890527,129.35,129.34,829.89621333]
[1765754822409,137.92986777,129.35,129.34,770.78605598]
[1765754822718,148.07277657,129.35,129.34,472.64767925]
[1765754822920,148.07277657,129.35,129.34,236.43551375]
[1765754823234,148.07277657,129.35,129.34,162.21813464]
[1765754823235,147.42240932,129.35,129.34,162.21813464]
[1765754823533,45.65992285,129.35,129.34,162.21813464]
[1765754823716,54.11992285,129.35,129.34,162.21813464]
[1765754824229,39.42246441,129.35,129.34,162.93813464]
[1765754824404,8.46,129.35,129.34,162.93813464]
[1765754824810,29.2380537,129.35,129.34,162.93813464]
[1765754825218,114.69836586,129.35,129.34,162.21813464]
[1765754825805,124.84127466,129.35,129.34,51.51285128]
[1765754827031,124.84537744,129.35,129.34,51.51285128]
[1765754827308,124.84537744,129.35,129.34,1.30020431]
[1765754827612,13.0470912,129.32,129.3,0.92]
[1765754827819,10.11447002,129.31,129.3,0.92]
[1765754830707,8.46,129.31,129.3,0.92]
[1765754830920,10.11447002,129.31,129.3,0.92]
[1765754831435,11.04517306,129.31,129.3,0.92]
[1765754831632,11.04517306,129.31,129.3,0.2]
[1765754832131,30.38811147,129.31,129.3,0.2]
[1765754832326,39.19805639,129.31,129.3,0.2]
[1765754832833,114.19805639,129.31,129.3,0.2]
[1765754833136,121.93141034,129.31,129.3,0.2]
[1765754833832,35.53629236,129.31,129.3,0.2]
[1765754834041,18.77852701,129.31,129.3,0.92]
[1765754834215,8.46,129.31,129.3,0.92]
[1765754834945,7.74,129.31,129.3,8.65395204]
[1765754835435,7.74,129.31,129.3,0.92]
[1765754845678,15.47335395,129.31,129.3,0.92]
[1765754845971,128.31364499,129.31,129.3,1e-08]
[1765754846136,139.88027512,129.31,129.3,1e-08]
[1765754846334,75.0,129.27,129.25,0.1]
[1765754846531,75.0,129.25,129.2,0.77]
[1765754846731,2.58517306,129.24,129.2,0.77]
[1765754846938,8.48,129.23,129.2,0.67]
[1765754847359,2.58517306,129.22,129.19,0.67]
[1765754847549,11.06517306,129.23,129.21,0.89]
[1765754847747,8.48,129.23,129.21,0.89]
[1765754848067,8.48,129.23,129.22,0.69]
[1765754848763,8.48,129.23,129.22,8.42874013]
[1765754848968,8.48,129.23,129.22,0.69]
[1765754849875,8.48,129.23,129.22,8.42874013]
[1765754851248,2.58517306,129.31,129.23,8.80994492]
[1765754851542,8.48,129.3,129.26,7.20160496]
[1765754851746,8.48,129.3,129.27,7.20160496]
[1765754852260,8.48,129.3,129.28,0.69]
[1765754852462,8.48,129.3,129.28,7.89160496]
[1765754852964,8.48,129.3,129.29,8.42455023]
[1765754854177,8.48,129.3,129.29,15.62615519]
[1765754855266,8.48,129.33,129.29,15.62615519]
[1765754855465,8.48,129.33,129.3,8.42373001]
[1765754855991,8.48,129.33,129.31,0.69]
[1765754858384,8.48,129.33,129.31,8.42332419]
[1765754859589,8.48,129.33,129.32,0.69]
[1765754859995,8.48,129.36,129.32,7.89160496]
[1765754860164,14.93274285,129.4,129.33,8.80994492]
[1765754860485,0.66,129.42,129.33,8.80994492]
[1765754860486,8.48,129.39,129.35,7.20160496]
[1765754860665,8.48,129.39,129.36,0.69]
[1765754861660,24.07028215,129.39,129.36,0.69]
[1765754861878,23.41028215,129.39,129.36,0.69]
[1765754862074,16.20867719,129.39,129.36,0.69]
[1765754862389,8.48,129.39,129.36,0.69]
[1765754864290,8.48,129.39,129.36,8.42036315]
[1765754864665,8.48,129.39,129.37,0.69]
[1765754865290,16.20866593,129.39,129.37,0.69]
[1765754866161,16.86866593,129.39,129.35,7.73079864]
[1765754866393,16.20866593,129.39,129.36,0.69]
[1765754867072,24.06111195,129.39,129.36,0.69]
[1765754869192,8.48,129.39,129.36,0.69]
[1765754869702,8.48,129.39,129.36,8.42032509]
[1765754870067,8.48,129.39,129.37,0.69]
[1765754871294,8.48,129.39,129.37,15.61218705]
[1765754871675,8.48,129.39,129.38,16.69239094]
[1765754871872,8.46,129.42,129.39,8.80994492]
[1765754872073,8.46,129.42,129.4,7.19244602]
[1765754872282,8.46,129.42,129.4,7.88244602]
[1765754872487,8.46,129.42,129.41,0.69]
[1765754872978,0.1,129.44,129.41,15.60982412]
[1765754873178,0.1,129.44,129.42,16.00239094]
[1765754873375,0.1,129.44,129.42,0.69]
[1765754873581,0.1,129.44,129.43,0.69]
[1765754875285,0.1,129.44,129.41,0.69]
[1765754875584,0.1,129.44,129.42,0.69]
[1765754875981,0.1,129.44,129.42,7.88244602]
[1765754876313,0.1,129.44,129.43,15.60863005]
[1765754877105,0.1,129.44,129.43,0.69]
[1765754880013,0.1,129.44,129.41,0.68]
[1765754880220,0.1,129.44,129.42,0.68]
[1765754880518,0.1,129.44,129.42,8.40673529]
[1765754880717,0.1,129.44,129.42,0.68]
[1765754880913,0.1,129.44,129.41,7.72718371]
[1765754881119,0.1,129.44,129.42,0.68]
[1765754883524,0.79,129.44,129.4,13.7270912]
[1765754883815,15.65244602,129.43,129.37,8.50938519]